bitfinex/quotes_ETHUSD_20251023
["timestamp","ask_amount","ask_price","bid_price","bid_amount"]
[1761183503902,9.06048571,3822.0,3821.9,0.002]
[1761183505121,9.16528046,3822.0,3821.9,0.002]
[1761183510842,12.0435559,3822.0,3821.9,0.002]
[1761183511556,1.5552,3822.0,3821.9,0.002]
[1761183511856,0.001,3822.1,3821.9,0.3374]
[1761183512016,0.001,3822.1,3822.0,0.02616431]
[1761183512210,0.001,3822.1,3821.9,0.3374]
[1761183512407,0.001,3822.1,3821.9,0.63300876]
[1761183512919,0.001,3822.1,3822.0,0.3354]
[1761183513250,0.001,3822.1,3821.9,0.29760876]
[1761183513251,2.61736375,3822.1,3821.9,0.002]
[1761183514041,0.001,3822.1,3821.9,0.002]
[1761183514555,0.001,3822.1,3821.9,0.3374]
[1761183514913,0.001,3822.1,3821.9,0.002]
[1761183515814,2.61643118,3822.0,3821.9,0.002]
[1761183517028,0.001,3822.1,3821.9,0.002]
[1761183517738,2.61737572,3822.1,3821.9,0.002]
[1761183517937,0.001,3822.1,3821.9,0.002]
[1761183518557,2.61737358,3822.1,3821.9,0.002]
[1761183518754,0.001,3822.1,3821.9,0.002]
[1761183518925,2.61737628,3822.1,3821.9,0.002]
[1761183519761,0.001,3822.1,3822.0,0.3354]
[1761183519965,0.001,3822.1,3821.9,0.002]
[1761183520260,0.001,3822.1,3822.0,0.3354]
[1761183520455,0.001,3822.1,3821.9,0.002]
[1761183520823,0.001,3822.1,3822.0,0.3354]
[1761183522927,0.001,3822.1,3822.0,0.4666]
[1761183523258,0.001,3822.1,3822.0,0.77531662]
[1761183523559,0.001,3822.1,3822.0,0.4666]
[1761183527248,0.001,3822.1,3822.0,3.08303118]
[1761183531965,0.001,3822.1,3822.0,0.4666]
[1761183532607,0.001,3822.1,3822.0,0.1312]
[1761183532786,0.001,3822.1,3822.0,3.4742]
[1761183532984,0.4701,3822.5,3822.4,2.61615738]
[1761183532985,0.001,3822.5,3822.4,2.61615738]
[1761183533306,0.001,3822.5,3822.4,5.95915738]
[1761183533499,0.001,3822.5,3822.4,6.29355738]
[1761183535579,0.001,3822.5,3822.4,9.67871282]
[1761183535774,0.001,3822.5,3822.4,12.56075353]
[1761183536082,0.001,3822.5,3822.4,13.34611337]
[1761183542914,0.001,3822.5,3822.4,13.47731337]
[1761183551643,0.001,3822.5,3822.4,9.29303337]
[1761183551806,0.001,3822.5,3822.4,11.84867353]
[1761183552138,0.001,3822.5,3822.4,12.18307353]
[1761183553034,0.001,3822.5,3822.4,12.68995353]
[1761183553239,0.001,3822.5,3822.4,13.4901406]
[1761183553409,0.001,3822.5,3822.4,13.59485277]
[1761183553931,0.001,3822.5,3822.4,13.20226862]
[1761183555039,0.001,3822.5,3822.4,12.7946657]
[1761183563334,0.001,3822.5,3822.4,12.4602657]
[1761183563730,0.001,3822.5,3822.4,12.7946657]
[1761183564860,0.001,3822.5,3821.9,1.88305879]
[1761183565041,0.2243,3821.5,3821.2,1.3547625]
[1761183565348,3.62412541,3821.4,3821.2,1.3547625]
[1761183565560,0.67267009,3821.3,3821.2,1.3547625]
[1761183565715,0.4559,3821.3,3821.2,1.3547625]
[1761183566115,0.4559,3821.3,3821.2,4.7167625]
[1761183566319,0.2243,3821.5,3821.2,7.33374145]
[1761183566512,0.2243,3821.5,3821.4,2.61684199]
[1761183567120,0.6802,3821.5,3821.4,2.61684199]
[1761183567447,0.6802,3821.5,3821.4,3.89992788]
[1761183567764,0.6802,3822.0,3821.9,2.61649964]
[1761183568057,0.2243,3822.0,3821.9,5.97849964]
[1761183568364,0.2243,3822.0,3821.9,3.362]
[1761183568546,0.6617,3822.0,3821.9,5.97849964]
[1761183568714,0.6617,3822.0,3821.9,3.362]
[1761183575024,0.6617,3822.0,3821.9,3.4932]
[1761183577335,0.2243,3822.0,3821.9,3.4932]
[1761183577540,0.4374,3822.3,3821.9,3.4932]
[1761183579259,1.5552,3822.2,3821.9,3.4932]
[1761183579467,0.4374,3822.1,3821.9,3.4932]
[1761183589756,0.5696,3822.5,3821.9,6.10968711]
[1761183589955,0.001,3822.5,3822.0,0.02616431]
[1761183590159,0.4384,3822.5,3822.3,0.1312]
[1761183590367,0.4384,3822.5,3822.4,6.09635738]
[1761183590569,0.001,3822.5,3822.4,6.09635738]
[1761183600291,0.4422,3822.5,3822.4,3.4802]
[1761183600490,0.4422,3822.5,3822.4,3.4742]
[1761183600894,0.4422,3822.5,3822.4,6.09035738]
[1761183601094,0.4422,3822.5,3822.4,3.4742]
[1761183605998,0.4422,3822.5,3822.4,6.09035738]
[1761183606806,0.4422,3822.5,3822.4,2.74735738]
[1761183607010,0.4422,3822.5,3822.4,6.09035738]
[1761183607210,0.4422,3822.5,3822.4,3.4742]
[1761183608625,0.4422,3822.5,3822.4,6.09035738]
[1761183608824,0.4422,3822.5,3822.4,2.74735738]
[1761183609125,0.4422,3822.5,3822.4,6.09035738]
[1761183612136,0.001,3822.5,3822.4,6.09035738]
[1761183612917,0.4422,3822.5,3822.4,6.09035738]
[1761183613836,0.4422,3822.5,3822.4,6.96102238]
[1761183613837,0.001,3822.5,3822.4,6.96102238]
[1761183614025,0.001,3822.5,3822.4,10.6235132]
[1761183614436,0.001,3822.5,3822.4,6.96102238]
[1761183614622,0.001,3822.5,3822.4,7.29542238]
[1761183615038,0.001,3822.5,3822.4,10.6235132]
[1761183616228,0.001,3822.5,3822.4,12.6855932]
[1761183619363,0.001,3822.5,3822.4,8.5013132]
[1761183619547,0.001,3822.5,3822.4,11.8433132]
[1761183620575,0.001,3822.5,3822.4,12.16562761]
[1761183622170,0.001,3822.5,3822.4,8.50313679]
[1761183622887,0.001,3822.5,3822.4,8.83753679]
[1761183623594,0.001,3822.5,3822.4,12.16562761]
[1761183626784,0.001,3822.5,3822.4,12.67250761]
[1761183630690,0.001,3822.5,3822.4,12.21803727]
[1761183634304,0.001,3822.5,3822.4,12.22003727]
[1761183635008,0.001,3822.5,3822.4,11.88563727]
[1761183635208,0.001,3822.5,3822.4,12.22003727]
[1761183640807,0.001,3822.5,3822.4,8.87803727]
[1761183641008,0.001,3822.5,3822.4,11.88463727]
[1761183641210,0.001,3822.5,3822.4,8.03675727]
[1761183641376,0.001,3822.5,3822.4,11.37775727]
[1761183644506,0.4512,3822.5,3822.4,2.73727179]
[1761183644884,0.4512,3822.5,3822.4,6.07727179]
[1761183647121,0.4512,3822.5,3822.4,2.73727179]
[1761183647488,0.4512,3822.5,3822.4,6.07727179]
[1761183651424,0.4512,3822.5,3822.4,0.1332]
[1761183651627,0.4512,3822.5,3822.4,3.4732]
[1761183652334,0.4512,3822.5,3822.4,0.002]
[1761183652541,0.75791193,3822.5,3822.4,3.342]
[1761183652750,0.4512,3822.5,3822.4,3.342]
[1761183653237,0.5824,3822.5,3822.4,0.002]
[1761183654750,3.19848894,3822.5,3822.4,0.002]
[1761183655626,4.14587159,3822.5,3822.4,0.002]
[1761183655828,1.52978265,3822.5,3822.4,0.002]
[1761183656036,0.5824,3822.5,3822.4,0.002]
[1761183656355,3.19848894,3822.5,3822.4,0.002]
[1761183662624,8.13418942,3822.5,3822.4,0.002]
[1761183662933,8.92006976,3822.5,3822.4,0.002]
[1761183666325,12.26006976,3822.5,3822.4,0.002]
[1761183666526,13.76067884,3822.5,3822.4,0.002]
[1761183668552,16.51467884,3822.5,3822.0,1e-08]
[1761183668752,4.67871657,3821.7,3821.6,0.002]
[1761183668956,8.74823819,3821.7,3821.6,0.002]
[1761183669155,9.21413819,3821.7,3821.6,0.002]
[1761183669581,9.31895024,3821.7,3821.6,0.002]
[1761183671876,12.19257072,3821.7,3821.6,0.002]
[1761183673787,2.75062162,3821.7,3821.6,0.002]
[1761183673992,2.0211,3821.7,3821.6,0.002]
[1761183674162,4.63773657,3821.7,3821.6,0.002]
[1761183674662,7.51135705,3821.7,3821.6,0.002]
[1761183676203,10.85235705,3821.7,3821.6,0.002]
[1761183678770,10.98355705,3821.7,3821.6,0.002]
[1761183679099,9.51386251,3821.7,3821.6,0.002]
[1761183679298,5.0274,3821.7,3821.6,0.002]
[1761183679499,5.4933,3821.7,3821.6,0.002]
[1761183679798,8.10993657,3821.7,3821.6,0.002]
[1761183683829,11.49043705,3821.7,3821.6,0.002]
[1761183684038,13.23241317,3821.7,3821.6,0.002]
[1761183684734,9.38601269,3821.7,3821.6,0.002]
[1761183684919,9.84431269,3821.7,3821.6,0.002]
[1761183685888,6.04501269,3821.7,3821.6,0.002]
[1761183686123,7.64303657,3821.7,3821.6,0.002]
[1761183687019,1.6864,3821.7,3821.6,0.002]
[1761183688224,4.30303657,3821.7,3821.6,0.002]
[1761183688604,1.6864,3821.7,3821.6,0.002]
[1761183688930,0.1312,3821.7,3821.6,0.002]
[1761183692725,0.1312,3821.7,3821.6,0.902]
[1761183693324,4.17177256,3821.8,3821.6,0.902]
[1761183693325,4.30297256,3821.8,3821.6,0.902]
[1761183694429,3.05283657,3821.7,3821.6,0.902]
[1761183694797,2.61663657,3821.7,3821.6,0.902]
[1761183695321,4.30298851,3821.8,3821.6,0.902]
[1761183695695,2.61663657,3821.7,3821.6,0.902]
[1761183696723,3.42420291,3821.7,3821.6,0.902]
[1761183696899,3.86040291,3821.7,3821.6,0.902]
[1761183697826,1.24376634,3821.7,3821.6,0.902]
[1761183698007,3.42420291,3821.7,3821.6,0.902]
[1761183699229,3.86040291,3821.7,3821.6,0.902]
[1761183699430,3.42420291,3821.7,3821.6,0.902]
[1761183702095,0.80756634,3821.7,3821.6,0.902]
[1761183702301,1.6864,3821.8,3821.6,1.2364]
[1761183702302,0.1312,3821.8,3821.6,1.2364]
[1761183702595,0.001,3822.0,3821.9,2.61649964]
[1761183702927,0.001,3822.0,3821.9,3.59735206]
[1761183703102,0.001,3822.0,3821.9,3.95791705]
[1761183703422,0.001,3822.0,3821.9,4.06266432]
[1761183703617,0.001,3822.0,3821.9,4.03649933]
[1761183704934,0.001,3822.0,3821.9,3.93175206]
[1761183705374,0.001,3822.0,3821.9,7.26120607]
[1761183706654,0.001,3822.0,3821.9,7.76808607]
[1761183708622,0.001,3822.0,3821.9,9.32328607]
[1761183710980,0.001,3822.0,3821.9,5.99383206]
[1761183712061,0.001,3822.0,3821.9,9.32328607]
[1761183712462,0.001,3822.0,3821.9,9.45448607]
[1761183713277,0.001,3822.0,3821.9,9.55921442]
[1761183718057,0.001,3822.0,3821.9,12.89621442]
[1761183719892,0.001,3822.0,3821.9,8.71793442]
[1761183720150,0.001,3822.0,3821.9,7.50969964]
[1761183720639,0.001,3822.0,3821.9,7.84409964]
[1761183721104,0.001,3822.0,3821.9,7.94883484]
[1761183721813,0.001,3822.0,3821.9,7.61443484]
[1761183722345,0.001,3822.0,3821.9,7.94883484]
[1761183722719,0.001,3822.0,3821.9,9.42852618]
[1761183724354,0.001,3822.0,3821.9,9.32379098]
[1761183727238,0.001,3822.0,3821.9,8.98939098]
[1761183730066,0.001,3822.0,3821.9,9.12059098]
[1761183734587,0.001,3822.0,3821.9,2.74969964]
[1761183734588,0.4749,3822.0,3821.9,2.74969964]
[1761183734752,0.4749,3822.0,3821.9,6.08469964]
[1761183736571,0.4749,3822.0,3821.9,0.1332]
[1761183736873,0.4749,3822.0,3821.9,3.337]
[1761183737174,0.78401376,3822.0,3821.9,3.337]
[1761183737880,0.78401376,3822.0,3821.9,0.002]
[1761183738175,0.4749,3822.0,3821.9,3.337]
[1761183738744,0.4749,3822.0,3821.9,0.002]
[1761183746715,0.4616,3822.0,3821.9,0.002]
[1761183756534,0.001,3822.0,3821.9,0.002]
[1761183756736,0.001,3822.0,3821.9,2.61849964]
[1761183757039,0.001,3822.0,3821.9,2.74969964]
[1761183757195,0.001,3822.0,3821.9,2.77586463]
[1761183757704,0.001,3822.0,3821.9,2.74969964]
[1761183758291,0.001,3822.0,3821.9,3.74347288]
[1761183759334,0.001,3822.0,3821.9,2.74969964]
[1761183761832,0.001,3822.0,3821.9,3.08409964]
[1761183762002,0.001,3822.0,3821.9,3.11026463]
[1761183762533,0.001,3822.0,3821.9,3.08409964]
[1761183762834,0.001,3822.0,3821.9,2.74969964]
[1761183763329,0.001,3822.0,3821.9,3.71003295]
[1761183764450,0.001,3822.0,3821.9,2.74969964]
[1761183767126,0.001,3822.0,3821.9,0.1332]
[1761183767330,0.4457,3822.0,3821.9,3.4652]
[1761183771853,0.4457,3822.0,3821.9,3.334]
[1761183772160,0.75191102,3822.0,3821.9,3.334]
[1761183777340,0.4457,3822.0,3821.9,3.334]
[1761183778559,0.001,3822.0,3821.9,3.334]
[1761183778743,0.001,3822.0,3821.9,5.95049964]
[1761183778954,0.001,3822.0,3821.9,6.08169964]
[1761183779155,0.001,3822.0,3821.9,6.41609964]
[1761183779355,0.001,3822.0,3821.9,6.08169964]
[1761183779773,0.001,3822.0,3821.9,3.4652]
[1761183779984,0.4643,3822.0,3821.9,3.4652]
[1761183780682,0.4643,3822.0,3821.9,0.002]
[1761183780852,0.77236425,3822.0,3821.9,3.333]
[1761183781485,0.4643,3822.0,3821.9,0.002]
[1761183785484,0.001,3822.0,3821.9,0.002]
[1761183785673,0.4643,3822.0,3821.9,0.002]
[1761183786214,0.001,3822.0,3821.9,0.002]
[1761183786706,0.4643,3822.0,3821.9,0.002]
[1761183790712,0.001,3822.0,3821.9,0.002]
[1761183792294,0.001,3822.0,3821.9,3.67735339]
[1761183792495,0.001,3822.0,3821.9,3.6511884]
[1761183793101,0.001,3822.0,3821.9,3.67735339]
[1761183793516,0.001,3822.0,3821.9,0.002]
[1761183793696,0.001,3822.0,3821.9,3.332]
[1761183794226,0.001,3822.0,3821.9,5.94849964]
[1761183794602,0.001,3822.0,3821.9,6.28289964]
[1761183798026,0.001,3822.0,3821.9,7.83809964]
[1761183798196,0.001,3822.0,3821.9,9.31206876]
[1761183802034,0.001,3822.0,3821.9,9.81894876]
[1761183802204,0.001,3822.0,3821.9,13.09717583]
[1761183802398,0.001,3822.0,3821.9,13.22837583]
[1761183802933,0.001,3822.0,3821.9,10.45629701]
[1761183805226,0.001,3822.0,3821.9,10.45629701]
[1761183807556,0.001,3822.0,3821.9,12.9986987]
[1761183807709,0.2366,3824.6,3823.2,2.61560996]
[1761183807908,0.6793,3824.6,3823.2,11.28391703]
[1761183808241,0.001,3824.9,3824.8,2.61451579]
[1761183808539,0.001,3824.9,3824.8,5.94251579]
[1761183808854,0.001,3824.9,3824.8,8.81931748]
[1761183809009,0.001,3824.9,3824.8,9.04211748]
[1761183809338,0.001,3824.9,3824.8,9.54873559]
[1761183812816,0.001,3824.9,3824.8,6.6719339]
[1761183813237,0.001,3824.9,3824.8,7.0063339]
[1761183817630,0.001,3825.3,3825.2,2.61424239]
[1761183817861,0.001,3825.3,3825.2,11.58552002]
[1761183818061,0.001,3825.3,3825.2,11.91992002]
[1761183818263,0.001,3825.3,3825.2,12.02455002]
[1761183819337,0.001,3825.3,3825.2,8.36837663]
[1761183819845,0.001,3825.3,3825.2,8.70277663]
[1761183823846,0.001,3825.3,3825.2,8.36837663]
[1761183824039,0.001,3825.3,3825.2,5.04237663]
[1761183824240,0.001,3825.3,3825.2,8.36737663]
[1761183824465,0.001,3825.3,3825.2,5.04237663]
[1761183824640,0.001,3825.3,3825.2,8.36737663]
[1761183825333,0.001,3825.3,3825.2,4.53549663]
[1761183825537,0.00649969,3828.2,3825.9,0.50688]
[1761183825836,0.00649969,3828.2,3827.7,2.6124851]
[1761183826054,0.00649969,3828.2,3827.8,3.14144061]
[1761183826373,0.00649969,3828.2,3827.9,3.324]
[1761183829188,0.099,3828.0,3827.9,3.324]
[1761183830076,0.40621265,3828.0,3827.9,3.324]
[1761183830272,0.40621265,3828.0,3827.8,0.1304]
[1761183830477,0.247,3827.9,3827.8,3.324]
[1761183830985,0.247,3827.9,3827.5,0.1304]
[1761183831185,2.85945628,3827.9,3825.7,0.4366]
[1761183831386,2.61265136,3827.6,3826.7,2.6132161]
[1761183831568,0.30835563,3827.8,3826.8,3.323]
[1761183831569,2.61268185,3827.5,3826.8,3.323]
[1761183831961,0.1504,3826.9,3826.8,5.93614936]
[1761183832156,0.1504,3826.9,3826.8,3.323]
[1761183832368,0.2494,3826.9,3826.8,3.323]
[1761183832572,0.2494,3826.9,3826.8,5.93614936]
[1761183834262,0.2494,3826.9,3826.8,3.323]
[1761183835162,0.2494,3826.9,3825.1,0.002]
[1761183835457,0.2494,3826.9,3825.8,2.61377791]
[1761183835458,2.61330488,3826.6,3825.8,2.61377791]
[1761183835658,2.61330488,3826.6,3825.9,2.272]
[1761183835858,0.247,3826.5,3825.9,4.88576341]
[1761183836091,0.5330228,3826.5,3826.0,2.61368831]
[1761183836468,0.247,3826.4,3826.0,2.61368831]
[1761183836793,0.247,3826.4,3825.9,4.88574424]
[1761183837158,0.247,3826.4,3825.9,2.272]
[1761183837561,0.247,3826.4,3826.0,0.002]
[1761183837761,0.3146381,3826.3,3826.1,3.323]
[1761183838287,0.247,3826.2,3826.1,3.323]
[1761183838459,0.247,3826.2,3826.0,0.002]
[1761183841383,2.61362745,3826.1,3826.0,0.002]
[1761183841789,0.247,3826.1,3826.0,0.002]
[1761183842260,0.54609887,3826.1,3826.0,0.002]
[1761183843768,3.15972632,3826.1,3826.0,0.002]
[1761183844105,2.99102745,3826.1,3826.0,0.002]
[1761183844602,0.3774,3826.1,3826.0,0.002]
[1761183846282,2.99102745,3826.1,3826.0,0.002]
[1761183849199,0.1304,3826.1,3826.0,0.002]
[1761183849372,3.4744,3826.9,3826.0,0.002]
[1761183849373,0.1304,3826.2,3826.0,0.002]
[1761183849566,2.74398307,3826.2,3826.0,0.002]
[1761183849770,0.099,3826.1,3826.0,0.002]
[1761183853588,0.1304,3826.2,3826.0,0.002]
[1761183853790,0.2294,3826.2,3826.0,0.002]
[1761183854207,0.099,3826.1,3826.0,0.002]
[1761183854776,0.53881778,3826.1,3826.0,0.002]
[1761183855576,3.15244523,3826.1,3826.0,0.002]
[1761183855978,0.53881778,3826.1,3826.0,0.002]
[1761183857102,0.1304,3826.2,3826.0,0.002]
[1761183857807,1.5552,3826.4,3826.0,0.002]
[1761183857976,0.1304,3826.3,3826.0,0.002]
[1761183859301,1.6856,3826.4,3826.0,0.002]
[1761183859482,2.12549578,3826.4,3826.0,0.002]
[1761183859683,0.57029578,3826.4,3826.0,0.002]
[1761183860632,0.001,3826.6,3826.0,0.02813695]
[1761183860925,0.001,3826.6,3826.5,2.61335424]
[1761183861082,0.001,3826.6,3826.5,6.06675424]
[1761183861278,0.001,3826.6,3826.5,6.53875424]
[1761183861478,0.001,3826.6,3826.5,3.4534]
[1761183862405,0.001,3826.6,3826.5,6.06675424]
[1761183862781,0.001,3826.6,3826.5,3.4534]
[1761183863396,0.001,3826.6,3826.5,0.1304]
[1761183864147,0.001,3826.6,3826.5,2.74375424]
[1761183864343,0.001,3826.6,3826.5,3.20045424]
[1761183869041,0.001,3826.6,3826.5,0.1304]
[1761183869339,0.001,3826.6,3826.5,2.74375424]
[1761183870429,0.001,3826.6,3826.5,0.1304]
[1761183870749,0.001,3826.6,3826.5,2.74375424]
[1761183872920,0.001,3826.6,3826.5,2.74575424]
[1761183877249,0.1005,3826.6,3826.5,3.324]
[1761183877858,0.001,3826.6,3826.5,3.324]
[1761183879369,0.001,3826.6,3826.5,5.93735424]
[1761183880167,0.001,3826.6,3826.5,3.324]
[1761183880463,0.1005,3826.6,3826.5,3.324]
[1761183880771,0.001,3826.6,3826.5,3.324]
[1761183882770,0.001,3826.6,3826.5,5.93735424]
[1761183884267,0.001,3826.6,3826.5,3.52682531]
[1761183884470,0.001,3826.6,3826.5,3.324]
[1761183884773,0.1,3826.6,3826.5,3.324]
[1761183884951,0.1,3826.6,3826.5,5.93735424]
[1761183884952,0.001,3826.6,3826.5,5.93735424]
[1761183885452,0.001,3826.6,3826.5,6.37085424]
[1761183886670,0.001,3826.6,3826.5,5.93735424]
[1761183887278,0.001,3826.6,3826.5,7.28232723]
[1761183889656,0.001,3826.6,3826.5,5.93735424]
[1761183890653,0.001,3826.6,3826.5,6.37085424]
[1761183892881,0.001,3826.6,3826.5,0.002]
[1761183893074,0.001,3826.6,3826.5,5.93735424]
[1761183893889,0.001,3826.6,3826.5,6.37085424]
[1761183894080,0.001,3826.6,3826.5,7.28232823]
[1761183894987,0.001,3826.6,3826.5,6.84882823]
[1761183895191,0.001,3826.6,3826.5,7.28232823]
[1761183899677,0.001,3826.6,3826.5,5.93735424]
[1761183900159,0.001,3826.6,3826.5,3.324]
[1761183900364,0.001,3826.6,3826.5,5.93735424]
[1761183901687,0.1005,3826.6,3826.5,0.002]
[1761183901983,0.1005,3826.6,3826.5,5.93635424]
[1761183902363,0.001,3826.6,3826.5,5.93635424]
[1761183902569,0.001,3826.6,3826.5,3.323]
[1761183902876,0.001,3826.6,3826.5,5.93635424]
[1761183903501,0.001,3826.6,3826.5,6.40775424]
[1761183903997,0.001,3826.6,3826.5,5.93635424]
[1761183904165,0.001,3826.6,3826.5,0.002]
[1761183904370,0.1,3826.6,3826.5,3.323]
[1761183905681,0.001,3826.6,3826.5,5.93635424]
[1761183906187,0.001,3826.6,3826.5,6.06675424]
[1761183908908,0.001,3826.6,3826.5,6.53815424]
[1761183911007,0.001,3826.6,3826.5,7.45331608]
[1761183911697,0.001,3826.6,3826.5,6.06675424]
[1761183914713,0.1015,3826.6,3826.5,0.1324]
[1761183914893,0.1015,3826.6,3826.5,3.4524]
[1761183916021,0.1015,3826.6,3826.5,6.06575424]
[1761183916187,0.001,3826.6,3826.5,6.06575424]
[1761183916512,0.001,3826.6,3826.5,3.4524]
[1761183917185,0.001,3826.6,3826.5,6.06575424]
[1761183918820,0.001,3826.6,3826.5,3.4524]
[1761183919722,0.1015,3826.6,3826.5,3.322]
[1761183920394,0.001,3826.6,3826.5,5.93535424]
[1761183920696,0.001,3826.6,3826.5,3.322]
[1761183922008,0.001,3826.6,3826.5,0.002]
[1761183922009,0.1015,3826.6,3826.5,0.002]
[1761183922213,3.17029644,3826.6,3826.5,0.002]
[1761183923509,4.72549644,3826.6,3826.5,0.002]
[1761183923918,5.23237644,3826.6,3826.5,0.002]
[1761183925209,5.36326873,3826.6,3826.5,0.002]
[1761183926014,5.23237644,3826.6,3826.5,0.002]
[1761183926528,5.36243552,3826.6,3826.5,0.002]
[1761183926824,5.23237644,3826.6,3826.5,0.002]
[1761183929311,4.72549644,3826.6,3826.5,0.002]
[1761183929526,3.06979644,3826.6,3826.5,0.002]
[1761183929700,0.1314,3826.6,3826.5,0.002]
[1761183931623,2.74468594,3826.6,3826.5,0.002]
[1761183931839,0.1314,3826.6,3826.5,0.002]
[1761183932405,2.84518594,3826.6,3826.5,0.002]
[1761183933732,4.40038594,3826.6,3826.5,0.002]
[1761183933933,5.89118109,3826.6,3826.5,0.002]
[1761183934928,5.79068109,3826.6,3826.5,0.002]
[1761183935100,5.89118109,3826.6,3826.5,0.002]
[1761183935722,5.79068109,3826.6,3826.5,0.002]
[1761183937132,5.89118109,3826.6,3826.5,0.002]
[1761183937327,5.79068109,3826.6,3826.5,0.002]
[1761183937530,1.6866,3826.6,3826.5,0.002]
[1761183937901,0.1314,3826.6,3826.5,0.002]
[1761183938104,0.001,3826.6,3826.5,0.4667]
[1761183938401,0.001,3826.6,3826.5,3.21045424]
[1761183938597,0.001,3826.6,3826.5,4.1247482]
[1761183939502,0.001,3826.6,3826.5,4.15088174]
[1761183939920,0.001,3826.6,3826.5,4.1247482]
[1761183948554,0.001,3826.6,3826.5,4.15088174]
[1761183949357,0.001,3826.6,3826.5,5.70608174]
[1761183949560,0.001,3826.6,3826.5,5.6799482]
[1761183955078,0.001,3826.6,3826.5,6.1868282]
[1761183957087,0.001,3826.6,3826.5,6.31447244]
[1761183957246,0.001,3826.6,3826.5,6.1868282]
[1761183957450,0.001,3826.6,3826.5,5.6799482]
[1761183958277,0.001,3826.6,3826.5,7.95225424]
[1761183959000,0.001,3826.6,3826.5,8.84787697]
[1761183960952,0.001,3826.6,3826.5,8.45913424]
[1761183961595,1e-08,3827.0,3826.9,2.61308108]
[1761183961757,1e-08,3827.0,3826.9,9.30894602]
[1761183961961,1e-08,3827.0,3826.9,9.28281521]
[1761183964086,1e-08,3827.0,3826.9,5.45893521]
[1761183964263,1e-08,3827.0,3826.9,7.48528108]
[1761183964580,1e-08,3827.0,3826.9,2.61308108]
[1761183964889,1e-08,3827.0,3826.9,5.93008108]
[1761183965089,1e-08,3827.0,3826.5,0.002]
[1761183965249,1e-08,3827.0,3826.9,2.61308108]
[1761183965584,1e-08,3827.0,3826.9,5.93008108]
[1761183966165,1e-08,3827.0,3826.9,6.36598108]
[1761183968207,1e-08,3827.0,3826.9,6.49638108]
[1761183970301,1e-08,3827.0,3826.9,7.40733597]
[1761183973904,1e-08,3827.0,3826.9,6.97143597]
[1761183974818,1e-08,3827.0,3826.9,7.40933597]
[1761183978521,1e-08,3827.0,3826.9,6.97343597]
[1761183978898,1e-08,3827.0,3826.9,7.40933597]
[1761183985141,1e-08,3827.0,3826.9,6.97343597]
[1761183985326,1e-08,3827.0,3826.9,6.06248108]
[1761183986931,1e-08,3827.0,3826.9,6.53018108]
[1761183988835,1e-08,3827.0,3826.9,8.08538108]
[1761183989031,1e-08,3827.0,3826.9,8.59226108]
[1761183990970,1e-08,3827.0,3826.9,8.98118351]
[1761183992059,1e-08,3827.0,3826.9,11.04538396]
[1761183992378,1e-08,3827.0,3826.9,10.65646153]
[1761183992968,1e-08,3827.0,3826.9,7.33946153]
[1761183993646,1e-08,3827.0,3826.9,6.36488153]
[1761183993847,1e-08,3827.0,3826.9,6.87176153]
[1761183994289,1e-08,3827.0,3826.9,7.33996153]
[1761183994575,1e-08,3827.0,3826.9,6.36488153]
[1761183994752,1e-08,3827.0,3826.9,4.30068108]
[1761183995086,1e-08,3827.0,3826.9,4.79501189]
[1761183995287,1e-08,3827.0,3826.9,4.76888108]
[1761183995583,1e-08,3827.0,3826.9,4.79501189]
[1761183996771,1e-08,3827.0,3826.9,8.16878372]
[1761183996976,1e-08,3827.0,3826.9,9.25974031]
[1761183997740,1e-08,3827.0,3826.9,5.41776848]
[1761184001268,0.10070001,3827.0,3826.9,4.30068108]
[1761184001463,1e-08,3827.0,3826.9,7.61568108]
[1761184001848,0.10070001,3827.0,3826.9,7.61568108]
[1761184002382,1e-08,3827.0,3826.9,7.61568108]
[1761184006289,1e-08,3827.0,3826.9,8.92525515]
[1761184006675,0.10070001,3827.0,3826.9,8.92525515]
[1761184006879,0.10070001,3827.0,3826.9,7.61568108]
[1761184007076,0.10070001,3827.0,3826.9,4.30068108]
[1761184007392,0.10070001,3827.0,3826.9,6.05948108]
[1761184007891,0.10070001,3827.0,3826.9,2.74548108]
[1761184008078,0.10070001,3827.0,3826.9,6.05948108]
[1761184008958,1e-08,3827.0,3826.9,6.05948108]
[1761184009870,1e-08,3827.0,3826.9,8.92637291]
[1761184010192,1e-08,3827.0,3826.9,10.08032698]
[1761184010985,1e-08,3827.0,3826.9,8.92637291]
[1761184013296,1e-08,3827.0,3826.9,9.39457291]
[1761184013974,1e-08,3827.0,3826.9,8.92637291]
[1761184015064,1e-08,3827.0,3826.9,9.39457291]
[1761184016178,1e-08,3827.0,3826.9,8.92637291]
[1761184017398,1e-08,3827.0,3826.9,10.59534698]
[1761184018896,1e-08,3827.0,3826.9,13.06504495]
[1761184019487,1e-08,3827.0,3826.9,12.65742698]
[1761184019999,1e-08,3827.0,3826.9,13.06504495]
[1761184022991,1e-08,3827.0,3826.9,12.18922698]
[1761184023427,1e-08,3827.0,3826.9,12.64222698]
[1761184025163,1e-08,3827.0,3826.9,12.18922698]
[1761184026654,1e-08,3827.0,3826.9,12.64222698]
[1761184027044,1e-08,3827.0,3826.9,12.18922698]
[1761184027348,0.001,3827.3,3827.2,3.11975625]